[Event "Titled Tuesday Blitz December 14 2021"]
[White "Lazavik, Denis"]
[Black "Vantika, Agrawal"]
[WhiteFideId "13515110"]
[BlackFideId "25050389"]
[WhiteElo "2436"]
[BlackElo "1917"]
[Result "1-0"]
[Round "02"]
[TimeControl "180+1"]
[Date "2021.12.14"]
[WhiteClock "0:00:03"]
[BlackClock "0:00:03"]

1. d4 {[%clk 0:02:58]}  Nf6 {[%clk 0:02:59]} 2. c4 {[%clk 0:02:58]}  e6 {[%clk 0:02:59]} 3. Nf3 {[%clk 0:02:58]}  d5 {[%clk 0:02:59]} 4. Nc3 {[%clk 0:02:59]}  Be7 {[%clk 0:02:59]} 5. Bg5 {[%clk 0:02:59]}  h6 {[%clk 0:02:59]} 6. Bh4 {[%clk 0:02:59]}  dxc4 {[%clk 0:02:59]} 7. e4 {[%clk 0:02:50]}  Nxe4 {[%clk 0:02:29]} 8. Nxe4 {[%clk 0:01:56]}  Bxh4 {[%clk 0:02:28]} 9. Bxc4 {[%clk 0:01:56]}  O-O {[%clk 0:02:26]} 10. Qe2 {[%clk 0:01:50]}  Be7 {[%clk 0:02:07]} 11. O-O-O {[%clk 0:01:49]}  c6 {[%clk 0:01:52]} 12. g4 {[%clk 0:01:46]}  b5 {[%clk 0:01:32]} 13. Bb3 {[%clk 0:01:40]}  a5 {[%clk 0:01:27]} 14. Rhg1 {[%clk 0:01:39]}  a4 {[%clk 0:01:27]} 15. Bc2 {[%clk 0:01:38]}  a3 {[%clk 0:01:17]} 16. b3 {[%clk 0:01:37]}  g6 {[%clk 0:00:56]} 17. h4 {[%clk 0:01:16]}  Na6 {[%clk 0:00:55]} 18. h5 {[%clk 0:01:09]}  g5 {[%clk 0:00:50]} 19. Nc3 {[%clk 0:00:50]}  Nb4 {[%clk 0:00:50]} 20. Bb1 {[%clk 0:00:50]}  Nd5 {[%clk 0:00:45]} 21. Nxd5 {[%clk 0:00:39]}  cxd5 {[%clk 0:00:45]} 22. Ne5 {[%clk 0:00:35]}  Bd7 {[%clk 0:00:43]} 23. Qd3 {[%clk 0:00:31]}  f5 {[%clk 0:00:40]} 24. f4 {[%clk 0:00:29]}  Rc8+ {[%clk 0:00:37]} 25. Bc2 {[%clk 0:00:29]}  Bb4 {[%clk 0:00:34]} 26. gxf5 {[%clk 0:00:23]}  Rc3 {[%clk 0:00:32]} 27. Qe2 {[%clk 0:00:20]}  Rxf5 {[%clk 0:00:26]} 28. fxg5 {[%clk 0:00:17]}  Rxg5 {[%clk 0:00:25]} 29. Kb1 {[%clk 0:00:15]}  Be8 {[%clk 0:00:22]} 30. Qf2 {[%clk 0:00:08]}  Bxh5 {[%clk 0:00:17]} 31. Rxg5+ {[%clk 0:00:09]}  hxg5 {[%clk 0:00:14]} 32. Rh1 {[%clk 0:00:09]}  Qe8 {[%clk 0:00:12]} 33. Qf6 {[%clk 0:00:06]}  Bf8 {[%clk 0:00:05]} 34. Qxg5+ {[%clk 0:00:05]}  Bg7 {[%clk 0:00:05]} 35. Rxh5 {[%clk 0:00:03]}  Qf8 {[%clk 0:00:04]} 36. Bh7+ {[%clk 0:00:03]}  Kh8 {[%clk 0:00:03]} 37. Ng6# {[%clk 0:00:03]} 1-0


[Site "https://www.chess.com"]

[Event "Titled Tuesday Blitz December 14 2021"]
[White "Le, Tuan Minh"]
[Black "Atakhan, Abtin"]
[WhiteFideId "12401153"]
[BlackFideId "22502203"]
[WhiteElo "2450"]
[BlackElo "2119"]
[Result "1-0"]
[Round "02"]
[TimeControl "180+1"]
[Date "2021.12.14"]
[WhiteClock "0:01:36"]
[BlackClock "0:00:03"]

1. d4 {[%clk 0:03:00]}  Nf6 {[%clk 0:02:58]} 2. Nf3 {[%clk 0:03:01]}  e6 {[%clk 0:02:56]} 3. Bf4 {[%clk 0:03:00]}  b6 {[%clk 0:02:52]} 4. e3 {[%clk 0:03:00]}  Bb7 {[%clk 0:02:51]} 5. Bd3 {[%clk 0:03:01]}  d5 {[%clk 0:02:51]} 6. O-O {[%clk 0:03:01]}  Bd6 {[%clk 0:02:50]} 7. Bg3 {[%clk 0:03:01]}  O-O {[%clk 0:02:45]} 8. c4 {[%clk 0:03:00]}  c5 {[%clk 0:02:38]} 9. Nc3 {[%clk 0:03:00]}  dxc4 {[%clk 0:02:25]} 10. Bxc4 {[%clk 0:03:00]}  Nc6 {[%clk 0:02:22]} 11. dxc5 {[%clk 0:02:56]}  Bxc5 {[%clk 0:02:21]} 12. Qe2 {[%clk 0:02:56]}  Qe7 {[%clk 0:02:15]} 13. a3 {[%clk 0:02:51]}  Rfd8 {[%clk 0:02:00]} 14. Bh4 {[%clk 0:02:48]}  Qf8 {[%clk 0:01:45]} 15. Bxf6 {[%clk 0:02:33]}  gxf6 {[%clk 0:00:49]} 16. Ba6 {[%clk 0:02:33]}  Bxa6 {[%clk 0:00:46]} 17. Qxa6 {[%clk 0:02:34]}  f5 {[%clk 0:00:45]} 18. Rac1 {[%clk 0:02:34]}  Bd6 {[%clk 0:00:35]} 19. Nb5 {[%clk 0:02:32]}  Ne5 {[%clk 0:00:35]} 20. Nfd4 {[%clk 0:02:23]}  Ng4 {[%clk 0:00:31]} 21. h3 {[%clk 0:02:16]}  Nf6 {[%clk 0:00:29]} 22. Nc6 {[%clk 0:02:13]}  Rd7 {[%clk 0:00:29]} 23. Rfd1 {[%clk 0:02:13]}  Kh8 {[%clk 0:00:26]} 24. Qa4 {[%clk 0:02:08]}  a6 {[%clk 0:00:23]} 25. Nxd6 {[%clk 0:01:52]}  Rxd6 {[%clk 0:00:24]} 26. Ne5 {[%clk 0:01:52]}  Nd5 {[%clk 0:00:18]} 27. Qd4 {[%clk 0:01:51]}  f6 {[%clk 0:00:15]} 28. Nc4 {[%clk 0:01:50]}  Rd7 {[%clk 0:00:14]} 29. Nxb6 {[%clk 0:01:49]}  Nxb6 {[%clk 0:00:09]} 30. Qxb6 {[%clk 0:01:50]}  Re7 {[%clk 0:00:09]} 31. Rc6 {[%clk 0:01:48]}  Rae8 {[%clk 0:00:09]} 32. Qxa6 {[%clk 0:01:48]}  Qg8 {[%clk 0:00:09]} 33. Qc4 {[%clk 0:01:47]}  Rg7 {[%clk 0:00:08]} 34. Qf1 {[%clk 0:01:47]}  Rg6 {[%clk 0:00:06]} 35. Rc7 {[%clk 0:01:46]}  e5 {[%clk 0:00:05]} 36. Rdd7 {[%clk 0:01:46]}  Rh6 {[%clk 0:00:05]} 37. Qd3 {[%clk 0:01:43]}  Qg5 {[%clk 0:00:02]} 38. Rd8 {[%clk 0:01:36]}  Rg8 {[%clk 0:00:02]} 39. Rxg8+ {[%clk 0:01:35]}  Qxg8 {[%clk 0:00:03]} 40. Qxf5 {[%clk 0:01:35]}  Rg6 {[%clk 0:00:03]} 41. Rc8 {[%clk 0:01:36]} 1-0


[Site "https://www.chess.com"]

[Event "Titled Tuesday Blitz December 14 2021"]
[White "Manukyan, Sargis A."]
[Black "Visakh N R"]
[WhiteFideId "13303970"]
[BlackFideId "25012223"]
[WhiteElo "2187"]
[BlackElo "2454"]
[Result "0-1"]
[Round "02"]
[TimeControl "180+1"]
[Date "2021.12.15"]
[WhiteClock "0:00:08"]
[BlackClock "0:00:34"]

1. d4 {[%clk 0:02:57]}  Nf6 {[%clk 0:02:57]} 2. c4 {[%clk 0:02:57]}  e6 {[%clk 0:02:56]} 3. Nc3 {[%clk 0:02:58]}  d5 {[%clk 0:02:54]} 4. cxd5 {[%clk 0:02:57]}  exd5 {[%clk 0:02:55]} 5. Bg5 {[%clk 0:02:58]}  Be7 {[%clk 0:02:55]} 6. e3 {[%clk 0:02:58]}  O-O {[%clk 0:02:55]} 7. Bd3 {[%clk 0:02:59]}  c6 {[%clk 0:02:55]} 8. Qc2 {[%clk 0:02:58]}  Nbd7 {[%clk 0:02:55]} 9. Nf3 {[%clk 0:02:58]}  Re8 {[%clk 0:02:54]} 10. O-O {[%clk 0:02:59]}  Nf8 {[%clk 0:02:54]} 11. h3 {[%clk 0:02:59]}  Ne4 {[%clk 0:02:48]} 12. Bf4 {[%clk 0:02:58]}  Nxc3 {[%clk 0:02:45]} 13. bxc3 {[%clk 0:02:57]}  Ng6 {[%clk 0:02:46]} 14. Bh2 {[%clk 0:02:54]}  Bd6 {[%clk 0:02:46]} 15. Bxd6 {[%clk 0:02:49]}  Qxd6 {[%clk 0:02:47]} 16. c4 {[%clk 0:02:50]}  dxc4 {[%clk 0:02:46]} 17. Bxc4 {[%clk 0:02:48]}  Qf6 {[%clk 0:02:46]} 18. Be2 {[%clk 0:02:28]}  Bf5 {[%clk 0:02:45]} 19. Qb3 {[%clk 0:02:27]}  Re7 {[%clk 0:02:40]} 20. a4 {[%clk 0:02:27]}  Be4 {[%clk 0:02:40]} 21. a5 {[%clk 0:02:22]}  Rae8 {[%clk 0:02:40]} 22. Nd2 {[%clk 0:02:08]}  Bd5 {[%clk 0:02:31]} 23. Bc4 {[%clk 0:02:08]}  Qg5 {[%clk 0:02:24]} 24. Bxd5 {[%clk 0:02:06]}  cxd5 {[%clk 0:02:24]} 25. Nf3 {[%clk 0:01:59]}  Qf5 {[%clk 0:02:23]} 26. Rfc1 {[%clk 0:01:52]}  h6 {[%clk 0:02:23]} 27. Rc5 {[%clk 0:01:50]}  Rd8 {[%clk 0:02:23]} 28. Rac1 {[%clk 0:01:47]}  Rdd7 {[%clk 0:02:14]} 29. Rc8+ {[%clk 0:01:29]}  Kh7 {[%clk 0:02:12]} 30. Rb8 {[%clk 0:01:23]}  Qe4 {[%clk 0:01:58]} 31. Rcc8 {[%clk 0:01:14]}  Nh4 {[%clk 0:01:57]} 32. Rh8+ {[%clk 0:01:07]}  Kg6 {[%clk 0:01:56]} 33. Nxh4+ {[%clk 0:00:54]}  Qxh4 {[%clk 0:01:54]} 34. Rhc8 {[%clk 0:00:29]}  Qe4 {[%clk 0:01:50]} 35. a6 {[%clk 0:00:23]}  bxa6 {[%clk 0:01:48]} 36. Rc6+ {[%clk 0:00:23]}  Re6 {[%clk 0:01:48]} 37. Rbc8 {[%clk 0:00:22]}  Kh7 {[%clk 0:01:43]} 38. Qb8 {[%clk 0:00:20]}  Rxc6 {[%clk 0:01:15]} 39. Rxc6 {[%clk 0:00:21]}  a5 {[%clk 0:01:05]} 40. Ra6 {[%clk 0:00:16]}  Qd3 {[%clk 0:01:03]} 41. Rxa5 {[%clk 0:00:09]}  Qd1+ {[%clk 0:01:01]} 42. Kh2 {[%clk 0:00:09]}  Qd2 {[%clk 0:01:01]} 43. Rxa7 {[%clk 0:00:09]}  Rxa7 {[%clk 0:01:01]} 44. Qxa7 {[%clk 0:00:10]}  Qxf2 {[%clk 0:01:01]} 45. Qe7 {[%clk 0:00:10]}  f6 {[%clk 0:01:01]} 46. Qe6 {[%clk 0:00:10]}  Kg6 {[%clk 0:00:53]} 47. Qxd5 {[%clk 0:00:05]}  Qxe3 {[%clk 0:00:52]} 48. Qd6 {[%clk 0:00:06]}  h5 {[%clk 0:00:49]} 49. d5 {[%clk 0:00:06]}  h4 {[%clk 0:00:44]} 50. Qc7 {[%clk 0:00:03]}  Qe5+ {[%clk 0:00:31]} 51. Qxe5 {[%clk 0:00:03]}  fxe5 {[%clk 0:00:32]} 52. g3 {[%clk 0:00:03]}  Kf6 {[%clk 0:00:32]} 53. gxh4 {[%clk 0:00:04]}  Ke7 {[%clk 0:00:32]} 54. Kg3 {[%clk 0:00:04]}  Kd6 {[%clk 0:00:32]} 55. Kf3 {[%clk 0:00:04]}  Kxd5 {[%clk 0:00:33]} 56. Ke3 {[%clk 0:00:05]}  e4 {[%clk 0:00:33]} 57. h5 {[%clk 0:00:05]}  Ke5 {[%clk 0:00:33]} 58. h4 {[%clk 0:00:06]}  Kf5 {[%clk 0:00:33]} 59. Ke2 {[%clk 0:00:06]}  Kf4 {[%clk 0:00:33]} 60. Kf2 {[%clk 0:00:06]}  e3+ {[%clk 0:00:33]} 61. Ke2 {[%clk 0:00:07]}  Ke4 {[%clk 0:00:33]} 62. Ke1 {[%clk 0:00:06]}  Kf3 {[%clk 0:00:32]} 63. Kf1 {[%clk 0:00:06]}  e2+ {[%clk 0:00:32]} 64. Ke1 {[%clk 0:00:07]}  Ke3 {[%clk 0:00:33]} 65. h6 {[%clk 0:00:08]}  gxh6 {[%clk 0:00:34]} 66. h5 {[%clk 0:00:08]}  Kf3 {[%clk 0:00:34]} 67. Kd2 {[%clk 0:00:08]}  Kf2 {[%clk 0:00:34]} 0-1


[Site "https://www.chess.com"]

[Event "Titled Tuesday Blitz December 14 2021"]
[White "Perez Leiva, Jerzy Jesus"]
[Black "Rakhmanov, Aleksandr"]
[WhiteFideId "3524337"]
[BlackFideId "4173708"]
[WhiteElo "2295"]
[BlackElo "2500"]
[Result "1/2-1/2"]
[Round "02"]
[TimeControl "180+1"]
[Date "2021.12.15"]
[WhiteClock "0:00:05"]
[BlackClock "0:00:10"]

1. d4 {[%clk 0:02:59]}  Nf6 {[%clk 0:02:57]} 2. c4 {[%clk 0:02:59]}  d6 {[%clk 0:02:57]} 3. Nc3 {[%clk 0:02:56]}  e5 {[%clk 0:02:57]} 4. dxe5 {[%clk 0:02:44]}  dxe5 {[%clk 0:02:56]} 5. Qxd8+ {[%clk 0:02:45]}  Kxd8 {[%clk 0:02:57]} 6. Nf3 {[%clk 0:02:36]}  Bd6 {[%clk 0:02:56]} 7. b3 {[%clk 0:02:35]}  Nbd7 {[%clk 0:02:38]} 8. Bb2 {[%clk 0:02:20]}  c6 {[%clk 0:02:16]} 9. O-O-O {[%clk 0:02:10]}  Kc7 {[%clk 0:01:59]} 10. Ng5 {[%clk 0:01:34]}  Rf8 {[%clk 0:01:58]} 11. Nce4 {[%clk 0:01:29]}  Nxe4 {[%clk 0:01:56]} 12. Nxe4 {[%clk 0:01:29]}  Be7 {[%clk 0:01:56]} 13. h4 {[%clk 0:01:20]}  h6 {[%clk 0:01:39]} 14. Ng3 {[%clk 0:01:07]}  Re8 {[%clk 0:01:15]} 15. h5 {[%clk 0:01:00]}  Bg5+ {[%clk 0:01:11]} 16. e3 {[%clk 0:01:00]}  Nf6 {[%clk 0:00:52]} 17. Be2 {[%clk 0:01:00]}  a5 {[%clk 0:00:49]} 18. a4 {[%clk 0:00:58]}  Ng4 {[%clk 0:00:33]} 19. Bxg4 {[%clk 0:00:31]}  Bxg4 {[%clk 0:00:32]} 20. Rd2 {[%clk 0:00:30]}  Rad8 {[%clk 0:00:20]} 21. Bc3 {[%clk 0:00:30]}  b6 {[%clk 0:00:16]} 22. Rxd8 {[%clk 0:00:29]}  Bxd8 {[%clk 0:00:16]} 23. f3 {[%clk 0:00:29]}  Bc8 {[%clk 0:00:15]} 24. e4 {[%clk 0:00:19]}  f6 {[%clk 0:00:15]} 25. b4 {[%clk 0:00:15]}  axb4 {[%clk 0:00:13]} 26. Bxb4 {[%clk 0:00:16]}  c5 {[%clk 0:00:10]} 27. Bc3 {[%clk 0:00:13]}  Kc6 {[%clk 0:00:11]} 28. Kb2 {[%clk 0:00:13]}  Be6 {[%clk 0:00:11]} 29. Kb3 {[%clk 0:00:13]}  Be7 {[%clk 0:00:11]} 30. Rd1 {[%clk 0:00:11]}  Ra8 {[%clk 0:00:11]} 31. Nf5 {[%clk 0:00:11]}  Bf8 {[%clk 0:00:11]} 32. g4 {[%clk 0:00:10]}  Rb8 {[%clk 0:00:11]} 33. Ne3 {[%clk 0:00:10]}  b5 {[%clk 0:00:11]} 34. axb5+ {[%clk 0:00:09]}  Rxb5+ {[%clk 0:00:11]} 35. Kc2 {[%clk 0:00:10]}  Rb8 {[%clk 0:00:12]} 36. Nd5 {[%clk 0:00:10]}  Ra8 {[%clk 0:00:12]} 37. Kb3 {[%clk 0:00:10]}  Rb8+ {[%clk 0:00:12]} 38. Kc2 {[%clk 0:00:11]}  Ra8 {[%clk 0:00:13]} 39. Kb3 {[%clk 0:00:11]}  Bc8 {[%clk 0:00:13]} 40. Ne3 {[%clk 0:00:11]}  Bd7 {[%clk 0:00:12]} 41. Nd5 {[%clk 0:00:10]}  Be8 {[%clk 0:00:13]} 42. Rb1 {[%clk 0:00:10]}  Bf7 {[%clk 0:00:13]} 43. Kc2 {[%clk 0:00:11]}  Be8 {[%clk 0:00:08]} 44. Rb6+ {[%clk 0:00:11]}  Kd7 {[%clk 0:00:09]} 45. Kb3 {[%clk 0:00:11]}  Kc8 {[%clk 0:00:08]} 46. Bd2 {[%clk 0:00:10]}  Rb8 {[%clk 0:00:08]} 47. Be3 {[%clk 0:00:09]}  Rxb6+ {[%clk 0:00:08]} 48. Nxb6+ {[%clk 0:00:10]}  Kb7 {[%clk 0:00:09]} 49. Nd5 {[%clk 0:00:10]}  Kc6 {[%clk 0:00:10]} 50. Nc3 {[%clk 0:00:10]}  Bd7 {[%clk 0:00:10]} 51. Na4 {[%clk 0:00:11]}  Be6 {[%clk 0:00:10]} 52. Kc3 {[%clk 0:00:11]}  Bf7 {[%clk 0:00:11]} 53. Kb3 {[%clk 0:00:11]}  g6 {[%clk 0:00:11]} 54. hxg6 {[%clk 0:00:09]}  Bxg6 {[%clk 0:00:12]} 55. Nc3 {[%clk 0:00:09]}  h5 {[%clk 0:00:13]} 56. gxh5 {[%clk 0:00:09]}  Bxh5 {[%clk 0:00:13]} 57. f4 {[%clk 0:00:08]}  Bd6 {[%clk 0:00:10]} 58. f5 {[%clk 0:00:04]}  Bf3 {[%clk 0:00:10]} 59. Kc2 {[%clk 0:00:04]}  Bc7 {[%clk 0:00:10]} 60. Kd3 {[%clk 0:00:04]}  Ba5 {[%clk 0:00:10]} 61. Nd5 {[%clk 0:00:05]}  Bd8 {[%clk 0:00:10]} 62. Bf2 {[%clk 0:00:05]}  Bg2 {[%clk 0:00:10]} 63. Bh4 {[%clk 0:00:05]}  Bf1+ {[%clk 0:00:10]} 64. Kc3 {[%clk 0:00:04]}  Bg2 {[%clk 0:00:09]} 65. Kd3 {[%clk 0:00:04]}  Bf1+ {[%clk 0:00:09]} 66. Kc3 {[%clk 0:00:04]}  Bg2 {[%clk 0:00:10]} 67. Bxf6 {[%clk 0:00:03]}  Ba5+ {[%clk 0:00:09]} 68. Kd3 {[%clk 0:00:04]}  Bf1+ {[%clk 0:00:10]} 69. Ke3 {[%clk 0:00:04]}  Bxc4 {[%clk 0:00:11]} 70. Bxe5 {[%clk 0:00:05]}  Bxd5 {[%clk 0:00:10]} 71. exd5+ {[%clk 0:00:06]}  Kxd5 {[%clk 0:00:11]} 72. Bg7 {[%clk 0:00:05]}  c4 {[%clk 0:00:11]} 73. f6 {[%clk 0:00:04]}  Bc3 {[%clk 0:00:12]} 74. Ke2 {[%clk 0:00:04]}  Be5 {[%clk 0:00:11]} 75. Kd1 {[%clk 0:00:04]}  Ke4 {[%clk 0:00:11]} 76. Kc2 {[%clk 0:00:04]}  Bxf6 {[%clk 0:00:10]} 77. Bxf6 {[%clk 0:00:04]}  c3 {[%clk 0:00:10]} 78. Bxc3 {[%clk 0:00:05]} 1/2-1/2


[Site "https://www.chess.com"]

[Event "Titled Tuesday Blitz December 14 2021"]
[White "Pranav, V"]
[Black "Mohammad Fahad, Rahman"]
[WhiteFideId "25060783"]
[BlackFideId "10207791"]
[WhiteElo "2351"]
[BlackElo "2323"]
[Result "1/2-1/2"]
[Round "02"]
[TimeControl "180+1"]
[Date "2021.12.14"]
[WhiteClock "0:00:23"]
[BlackClock "0:00:27"]

1. e4 {[%clk 0:03:00]}  e5 {[%clk 0:03:00]} 2. Nf3 {[%clk 0:03:01]}  Nc6 {[%clk 0:03:00]} 3. Nc3 {[%clk 0:03:01]}  Nf6 {[%clk 0:03:00]} 4. g3 {[%clk 0:03:02]}  Bc5 {[%clk 0:02:56]} 5. Bg2 {[%clk 0:03:02]}  d6 {[%clk 0:02:56]} 6. O-O {[%clk 0:03:02]}  a6 {[%clk 0:02:56]} 7. d3 {[%clk 0:03:01]}  O-O {[%clk 0:02:56]} 8. h3 {[%clk 0:03:01]}  h6 {[%clk 0:02:56]} 9. Nh4 {[%clk 0:03:00]}  Be6 {[%clk 0:02:55]} 10. Kh2 {[%clk 0:03:00]}  d5 {[%clk 0:02:54]} 11. exd5 {[%clk 0:02:59]}  Nxd5 {[%clk 0:02:55]} 12. Nxd5 {[%clk 0:02:59]}  Bxd5 {[%clk 0:02:56]} 13. Bxd5 {[%clk 0:03:00]}  Qxd5 {[%clk 0:02:56]} 14. Nf5 {[%clk 0:02:59]}  Nd4 {[%clk 0:02:53]} 15. Nxd4 {[%clk 0:02:56]}  Bxd4 {[%clk 0:02:50]} 16. Qh5 {[%clk 0:02:53]}  Rad8 {[%clk 0:02:48]} 17. Kg1 {[%clk 0:02:40]}  Rd6 {[%clk 0:02:47]} 18. Re1 {[%clk 0:02:35]}  b5 {[%clk 0:02:39]} 19. c3 {[%clk 0:02:14]}  Bb6 {[%clk 0:02:39]} 20. Be3 {[%clk 0:02:14]}  Qxd3 {[%clk 0:02:34]} 21. Bxb6 {[%clk 0:02:11]}  cxb6 {[%clk 0:02:24]} 22. Rad1 {[%clk 0:01:59]}  Qg6 {[%clk 0:02:22]} 23. Qxe5 {[%clk 0:01:57]}  Rxd1 {[%clk 0:02:17]} 24. Rxd1 {[%clk 0:01:57]}  Qc2 {[%clk 0:02:18]} 25. Rd4 {[%clk 0:01:50]}  Qxb2 {[%clk 0:02:11]} 26. Rg4 {[%clk 0:01:49]}  g6 {[%clk 0:01:50]} 27. Qd5 {[%clk 0:01:38]}  Kg7 {[%clk 0:01:35]} 28. Qd4+ {[%clk 0:01:35]}  Kg8 {[%clk 0:01:32]} 29. Qd5 {[%clk 0:01:25]}  Kh7 {[%clk 0:01:29]} 30. Qd6 {[%clk 0:01:20]}  Re8 {[%clk 0:01:20]} 31. Rf4 {[%clk 0:01:19]}  Qxa2 {[%clk 0:01:17]} 32. Qd7 {[%clk 0:01:11]}  Rf8 {[%clk 0:01:14]} 33. h4 {[%clk 0:01:09]}  h5 {[%clk 0:01:08]} 34. Qd6 {[%clk 0:01:08]}  Kg8 {[%clk 0:01:06]} 35. Qxb6 {[%clk 0:01:08]}  Qa1+ {[%clk 0:01:04]} 36. Kg2 {[%clk 0:01:06]}  Qxc3 {[%clk 0:01:02]} 37. Qxa6 {[%clk 0:01:06]}  Qc5 {[%clk 0:01:02]} 38. Qb7 {[%clk 0:01:05]}  Qe5 {[%clk 0:00:40]} 39. Re4 {[%clk 0:00:59]}  Qb8 {[%clk 0:00:39]} 40. Qe7 {[%clk 0:00:58]}  Qb6 {[%clk 0:00:37]} 41. Qb4 {[%clk 0:00:56]}  Rb8 {[%clk 0:00:36]} 42. Rf4 {[%clk 0:00:56]}  Qc6+ {[%clk 0:00:35]} 43. Kh2 {[%clk 0:00:56]}  Rd8 {[%clk 0:00:35]} 44. Qb3 {[%clk 0:00:56]}  Qd5 {[%clk 0:00:34]} 45. Qb4 {[%clk 0:00:51]}  Re8 {[%clk 0:00:34]} 46. Rd4 {[%clk 0:00:46]}  Qc6 {[%clk 0:00:34]} 47. Rf4 {[%clk 0:00:45]}  Re5 {[%clk 0:00:33]} 48. Qb3 {[%clk 0:00:42]}  Qd5 {[%clk 0:00:33]} 49. Qb4 {[%clk 0:00:42]}  Rf5 {[%clk 0:00:33]} 50. Rxf5 {[%clk 0:00:26]}  Qxf5 {[%clk 0:00:34]} 51. Qd4 {[%clk 0:00:26]}  b4 {[%clk 0:00:34]} 52. Qxb4 {[%clk 0:00:25]}  Qxf2+ {[%clk 0:00:34]} 53. Kh1 {[%clk 0:00:24]}  Qxg3 {[%clk 0:00:33]} 54. Qf8+ {[%clk 0:00:23]}  Kxf8 {[%clk 0:00:27]} 1/2-1/2


[Site "https://www.chess.com"]

[Event "Titled Tuesday Blitz December 14 2021"]
[White "Sviridov, Valery"]
[Black "Gunduz, Umut Erdem"]
[WhiteFideId "4120680"]
[BlackFideId "6381383"]
[WhiteElo "2454"]
[BlackElo "2096"]
[Result "1-0"]
[Round "02"]
[TimeControl "180+1"]
[Date "2021.12.14"]
[WhiteClock "0:02:15"]
[BlackClock "0:01:56"]

1. Nf3 {[%clk 0:03:00]}  Nf6 {[%clk 0:02:59]} 2. g3 {[%clk 0:03:01]}  g6 {[%clk 0:02:59]} 3. Bg2 {[%clk 0:03:01]}  Bg7 {[%clk 0:03:00]} 4. O-O {[%clk 0:03:02]}  O-O {[%clk 0:03:01]} 5. c4 {[%clk 0:03:02]}  c5 {[%clk 0:03:01]} 6. Nc3 {[%clk 0:03:03]}  Nc6 {[%clk 0:03:02]} 7. d4 {[%clk 0:03:03]}  cxd4 {[%clk 0:03:03]} 8. Nxd4 {[%clk 0:03:04]}  Nxd4 {[%clk 0:03:03]} 9. Qxd4 {[%clk 0:03:04]}  d6 {[%clk 0:03:04]} 10. b3 {[%clk 0:03:04]}  Nd7 {[%clk 0:03:05]} 11. Qd2 {[%clk 0:03:04]}  Nc5 {[%clk 0:03:04]} 12. Bb2 {[%clk 0:03:04]}  a5 {[%clk 0:03:04]} 13. Rac1 {[%clk 0:03:02]}  Be6 {[%clk 0:03:04]} 14. Rfd1 {[%clk 0:03:01]}  Qb6 {[%clk 0:03:04]} 15. Nb5 {[%clk 0:02:53]}  Bxb2 {[%clk 0:02:54]} 16. Qxb2 {[%clk 0:02:54]}  Rfc8 {[%clk 0:02:55]} 17. h4 {[%clk 0:02:53]}  a4 {[%clk 0:02:48]} 18. h5 {[%clk 0:02:34]}  axb3 {[%clk 0:02:45]} 19. axb3 {[%clk 0:02:35]}  Nd7 {[%clk 0:02:42]} 20. h6 {[%clk 0:02:33]}  Nf6 {[%clk 0:02:41]} 21. Rxd6 {[%clk 0:02:25]}  exd6 {[%clk 0:02:18]} 22. Qxf6 {[%clk 0:02:26]}  Kf8 {[%clk 0:02:18]} 23. Rd1 {[%clk 0:02:22]}  Rd8 {[%clk 0:02:18]} 24. Nd4 {[%clk 0:02:18]}  Bd7 {[%clk 0:02:02]} 25. Bd5 {[%clk 0:02:15]}  Be8 {[%clk 0:01:56]} 26. Ne6+ {[%clk 0:02:15]} 1-0


[Site "https://www.chess.com"]

[Event "Titled Tuesday Blitz December 14 2021"]
[White "Talibov, Shiroghlan"]
[Black "Nasyrova, Ekaterina"]
[WhiteFideId "13429078"]
[BlackFideId "44157797"]
[WhiteElo "2073"]
[BlackElo "2068"]
[Result "1-0"]
[Round "02"]
[TimeControl "180+1"]
[Date "2021.12.15"]
[WhiteClock "0:00:04"]
[BlackClock "0:00:02"]

1. c4 {[%clk 0:03:00]}  e6 {[%clk 0:02:59]} 2. Nc3 {[%clk 0:03:01]}  d5 {[%clk 0:02:59]} 3. d4 {[%clk 0:03:01]}  Nf6 {[%clk 0:02:59]} 4. cxd5 {[%clk 0:02:50]}  exd5 {[%clk 0:02:59]} 5. Bg5 {[%clk 0:02:48]}  Be7 {[%clk 0:02:58]} 6. e3 {[%clk 0:02:49]}  c6 {[%clk 0:02:58]} 7. Bd3 {[%clk 0:02:49]}  O-O {[%clk 0:02:55]} 8. Qc2 {[%clk 0:02:48]}  Re8 {[%clk 0:02:55]} 9. Bxf6 {[%clk 0:02:47]}  Bxf6 {[%clk 0:02:56]} 10. Bxh7+ {[%clk 0:02:48]}  Kh8 {[%clk 0:02:56]} 11. Bf5 {[%clk 0:02:41]}  Bxd4 {[%clk 0:02:54]} 12. Nge2 {[%clk 0:02:38]}  Bf6 {[%clk 0:02:53]} 13. O-O {[%clk 0:02:37]}  Bxf5 {[%clk 0:02:46]} 14. Qxf5 {[%clk 0:02:38]}  g6 {[%clk 0:02:46]} 15. Qf4 {[%clk 0:02:33]}  Nd7 {[%clk 0:02:44]} 16. Rad1 {[%clk 0:02:31]}  Qe7 {[%clk 0:02:42]} 17. Qh6+ {[%clk 0:02:22]}  Kg8 {[%clk 0:02:41]} 18. Rfe1 {[%clk 0:02:19]}  Bg5 {[%clk 0:02:39]} 19. Qh3 {[%clk 0:02:17]}  Kg7 {[%clk 0:02:38]} 20. Qg3 {[%clk 0:02:16]}  Bf6 {[%clk 0:02:37]} 21. Nf4 {[%clk 0:02:15]}  Qe5 {[%clk 0:02:25]} 22. Qf3 {[%clk 0:01:53]}  Nb6 {[%clk 0:02:21]} 23. h3 {[%clk 0:01:47]}  Nc4 {[%clk 0:02:15]} 24. Re2 {[%clk 0:01:42]}  b5 {[%clk 0:02:05]} 25. Rde1 {[%clk 0:01:07]}  Nxb2 {[%clk 0:01:42]} 26. Rxb2 {[%clk 0:01:00]}  Qxc3 {[%clk 0:01:41]} 27. Rbb1 {[%clk 0:01:01]}  Rad8 {[%clk 0:01:27]} 28. Rec1 {[%clk 0:00:59]}  Qa3 {[%clk 0:01:24]} 29. Rxc6 {[%clk 0:00:56]}  Qxa2 {[%clk 0:01:08]} 30. Rxb5 {[%clk 0:00:27]}  Qa1+ {[%clk 0:01:05]} 31. Kh2 {[%clk 0:00:27]}  Be5 {[%clk 0:01:02]} 32. g3 {[%clk 0:00:27]}  Bxf4 {[%clk 0:00:46]} 33. Qxf4 {[%clk 0:00:27]}  Re4 {[%clk 0:00:45]} 34. Qg5 {[%clk 0:00:22]}  Rde8 {[%clk 0:00:27]} 35. Rb7 {[%clk 0:00:21]}  R8e6 {[%clk 0:00:13]} 36. Qxd5 {[%clk 0:00:08]}  Qf1 {[%clk 0:00:05]} 37. Rc2 {[%clk 0:00:06]}  R4e5 {[%clk 0:00:03]} 38. Qd4 {[%clk 0:00:05]}  Kg8 {[%clk 0:00:02]} 39. Rc8+ {[%clk 0:00:05]}  Kg7 {[%clk 0:00:02]} 40. Rc2 {[%clk 0:00:05]}  Kh6 {[%clk 0:00:02]} 41. Qh4+ {[%clk 0:00:04]}  Kg7 {[%clk 0:00:02]} 42. Rb8 {[%clk 0:00:04]}  Rf6 {[%clk 0:00:02]} 43. Qh8# {[%clk 0:00:04]} 1-0


[Site "https://www.chess.com"]